[Event "XIII Mediterranean Championship 2023"]
[Site "Castell-Platja d Aro"]
[Date "2023.11.04"]
[Round "1.10"]
[White "Makka, Evanthia"]
[Black "Gilevych, Artem"]
[Result "0-1"]
[ECO "D30"]
[WhiteElo "2004"]
[BlackElo "2416"]
[Annotator "ChessBase"]
[PlyCount "106"]
[EventDate "2023.10.26"]
[EventType "swiss"]
[EventCountry "ESP"]
[SourceTitle "playchess.com"]
[Source "ChessBase"]
[SourceQuality "1"]
[TimeControl "5400+30"]

1. d4 {[%emt 0:03:55]} d5 {[%emt 0:00:07]} 2. Nf3 {[%emt 0:00:05]} Nf6 {[%emt 0:00:06]} 3. e3 {[%emt 0:00:05]} c5 {[%emt 0:00:09]} 4. dxc5 {[%emt 0:01:42]} e6 {[%emt 0:00:58]} 5. c4 {[%emt 0:00:49]} Bxc5 {[%emt 0:00:09]} 6. a3 {[%emt 0:01:22]} O-O {[%emt 0:00:51]} 7. b4 {[%emt 0:00:31]} Be7 {[%emt 0:01:33]} 8. Nbd2 {[%emt 0:01:52]} a5 {[%emt 0:01:17]} 9. b5 {[%emt 0:00:09]} Nbd7 {[%emt 0:05:43]} 10. Bb2 {[%emt 0:00:19]} Nc5 {[%emt 0:09:51]} 11. Be2 {[%emt 0:05:37]} a4 {[%emt 0:00:11]} 12. O-O {[%emt 0:03:23]} Qb6 {[%emt 0:00:21]} 13. Bd4 {[%emt 0:05:50]} Rd8 {[%emt 0:08:06]} 14. Qc2 {[%emt 0:18:50]} Bd7 {[%emt 0:05:12]} 15. Ne5 {[%emt 0:02:59]} Rac8 {[%emt 0:01:53]} 16. Qb2 {[%emt 0:07:10]} Be8 {[%emt 0:03:33]} 17. Rab1 {[%emt 0:09:57]} Qd6 {[%emt 0:08:35]} 18. Rfd1 {[%emt 0:15:05]} Bf8 {[%emt 0:07:54]} 19. Bc3 {[%emt 0:03:33]} Qc7 {[%emt 0:05:21]} 20. Nef3 {[%emt 0:03:29]} Nfe4 {[%emt 0:02:21]} 21. Be5 {[%emt 0:06:24]} Qe7 {[%emt 0:00:56]} 22. cxd5 {[%emt 0:00:39]} exd5 {[%emt 0:03:25]} 23. Rbc1 {[%emt 0:02:36]} Ne6 {[%emt 0:17:47]} 24. Nb1 {[%emt 0:01:13]} Rxc1 {[%emt 0:03:33]} 25. Qxc1 {[%emt 0:03:10]} N6g5 {[%emt 0:04:20]} 26. Qc7 {[%emt 0:00:55]} Rd7 {[%emt 0:07:24]} 27. Qb8 {[%emt 0:00:47]} f6 {[%emt 0:01:23]} 28. Bb2 {[%emt 0:00:59]} Rd8 {[%emt 0:00:39]} 29. Qa7 {[%emt 0:00:52]} Nxf3+ {[%emt 0:00:13]} 30. gxf3 {[%emt 0:00:20]} Nc5 {[%emt 0:00:41]} 31. Qa5 {[%emt 0:00:33]} Bf7 {[%emt 0:00:43]} 32. Qb4 {[%emt 0:00:34]} Qc7 {[%emt 0:00:41]} 33. Qh4 {[%emt 0:00:30]} Ne6 {[%emt 0:00:21]} 34. Rc1 {[%emt 0:00:32]} Qa5 {[%emt 0:00:31]} 35. Kh1 {[%emt 0:00:28]} Bg6 {[%emt 0:00:31]} 36. Qg4 {[%emt 0:00:30]} Qb6 {[%emt 0:00:26]} 37. Nc3 {[%emt 0:00:27]} d4 {[%emt 0:00:12]} 38. Nxa4 {[%emt 0:00:36]} Qd6 {[%emt 0:00:34]} 39. Bc4 {[%emt 0:00:15]} Bf7 {[%emt 0:00:21]} 40. Bxe6 {[%emt 0:00:32]} Bxe6 {[%emt 0:00:19]} 41. Qxd4 {[%emt 0:00:06]} Qb8 {[%emt 0:01:12]} 42. Qh4 {[%emt 0:00:40]} Bd5 {[%emt 0:00:30]} 43. e4 {[%emt 0:00:47]} Bb3 {[%emt 0:00:01]} 44. Nc5 {[%emt 0:00:42]} Bf7 {[%emt 0:00:49]} 45. Qg4 {[%emt 0:00:33]} Rc8 {[%emt 0:00:36]} 46. Nd3 {[%emt 0:00:25]} Rxc1+ {[%emt 0:00:29]} 47. Nxc1 {[%emt 0:00:07]} Qd8 {[%emt 0:00:06]} 48. Kg2 {[%emt 0:00:44]} Qd2 {[%emt 0:00:26]} 49. Bxf6 {[%emt 0:00:41]} Qxc1 {[%emt 0:00:07]} 50. a4 {[%emt 0:00:25]} Bc4 {[%emt 0:00:33]} 51. Be5 {[%emt 0:00:42]} Qf1+ {[%emt 0:00:27]} 52. Kg3 {[%emt 0:00:08]} Qg1+ {[%emt 0:00:06]} 53. Kf4 {[%emt 0:00:33]} Qxf2 {[%emt 0:00:53]} 0-1

[Event "XIII Mediterranean Championship 2023"]
[Site "Castell-Platja d Aro"]
[Date "2023.11.04"]
[Round "1.11"]
[White "Narciso Dublan, Marc"]
[Black "Clot Chico, Arnau"]
[Result "1-0"]
[ECO "A36"]
[WhiteElo "2401"]
[BlackElo "2008"]
[Annotator "ChessBase"]
[PlyCount "61"]
[EventDate "2023.10.26"]
[EventType "swiss"]
[EventCountry "ESP"]
[SourceTitle "playchess.com"]
[Source "ChessBase"]
[SourceQuality "1"]
[TimeControl "5400+30"]

1. c4 {[%emt 0:00:05]} Nf6 {[%emt 0:08:23]} 2. g3 {[%emt 0:00:41]} g6 {[%emt 0:00:30]} 3. Bg2 {[%emt 0:00:10]} Bg7 {[%emt 0:00:11]} 4. Nc3 {[%emt 0:00:21]} O-O {[%emt 0:00:21]} 5. e4 {[%emt 0:00:30]} d6 {[%emt 0:00:31]} 6. Nge2 {[%emt 0:00:10]} c5 {[%emt 0:03:44]} 7. O-O {[%emt 0:01:31]} Nc6 {[%emt 0:01:23]} 8. d3 {[%emt 0:00:06]} Ne8 {[%emt 0:01:10]} 9. Be3 {[%emt 0:00:30]} Nc7 {[%emt 0:01:17]} 10. d4 {[%emt 0:00:47]} cxd4 {[%emt 0:02:41]} 11. Nxd4 {[%emt 0:00:09]} Ne6 {[%emt 0:01:21]} 12. Nde2 {[%emt 0:00:44]} Ne5 {[%emt 0:04:44]} 13. b3 {[%emt 0:00:37]} Bd7 {[%emt 0:03:48]} 14. h3 {[%emt 0:06:42]} Bc6 {[%emt 0:03:06]} 15. Qc2 {[%emt 0:05:42]} f5 {[%emt 0:08:02]} 16. f4 {[%emt 0:02:51]} Nd7 {[%emt 0:01:16]} 17. exf5 {[%emt 0:03:06]} Bxg2 {[%emt 0:09:06]} 18. Kxg2 {[%emt 0:00:13]} gxf5 {[%emt 0:00:17]} 19. Rad1 {[%emt 0:01:18]} Qe8 {[%emt 0:03:17]} 20. Nd5 {[%emt 0:00:28]} Ndc5 {[%emt 0:06:30]} 21. g4 {[%emt 0:03:30]} fxg4 {[%emt 0:07:07]} 22. hxg4 {[%emt 0:00:11]} Rf7 {[%emt 0:04:41]} 23. Rf3 {[%emt 0:22:50]} Rc8 {[%emt 0:06:24]} 24. Ng3 {[%emt 0:11:45]} b5 {[%emt 0:04:24]} 25. Nf5 {[%emt 0:03:50]} bxc4 {[%emt 0:01:57]} 26. Qxc4 {[%emt 0:11:01]} a5 {[%emt 0:03:26]} 27. Bxc5 {[%emt 0:03:18]} Rxc5 {[%emt 0:01:35]} 28. Qe4 {[%emt 0:00:08]} Nf8 {[%emt 0:04:46]} 29. Ndxe7+ {[%emt 0:02:17]} Rxe7 {[%emt 0:01:18]} 30. Qxe7 {[%emt 0:00:13]} Rc2+ {[%emt 0:01:01]} 31. Rf2 {[%emt 0:01:25]} 1-0

[Event "XIII Mediterranean Championship 2023"]
[Site "Castell-Platja d Aro"]
[Date "2023.11.04"]
[Round "1.12"]
[White "Alonso Gimenez, Mauro"]
[Black "Trepat Herranz, Joan"]
[Result "0-1"]
[ECO "B23"]
[WhiteElo "1978"]
[BlackElo "2385"]
[Annotator "ChessBase"]
[PlyCount "70"]
[EventDate "2023.10.26"]
[EventType "swiss"]
[EventCountry "ESP"]
[SourceTitle "playchess.com"]
[Source "ChessBase"]
[SourceQuality "1"]
[TimeControl "5400+30"]

1. e4 {[%emt 0:00:06]} c5 {[%emt 0:03:06]} 2. Nc3 {[%emt 0:01:11]} d6 {[%emt 0:01:15]} 3. Bb5+ {[%emt 0:03:57]} Bd7 {[%emt 0:00:37]} 4. Bxd7+ {[%emt 0:00:11]} Qxd7 {[%emt 0:00:16]} 5. f4 {[%emt 0:01:08]} Nc6 {[%emt 0:00:57]} 6. Nf3 {[%emt 0:02:05]} g6 {[%emt 0:00:33]} 7. d3 {[%emt 0:02:33]} Bg7 {[%emt 0:00:23]} 8. O-O {[%emt 0:01:19]} Nf6 {[%emt 0:24:19]} 9. Bd2 {[%emt 0:15:53]} O-O {[%emt 0:02:46]} 10. Qe1 {[%emt 0:03:44]} Nd4 {[%emt 0:02:22]} 11. Rc1 {[%emt 0:09:50]} b5 {[%emt 0:22:45]} 12. Ne2 {[%emt 0:16:33]} Nxe2+ {[%emt 0:14:04]} 13. Qxe2 {[%emt 0:00:38]} c4 {[%emt 0:09:58]} 14. Bc3 {[%emt 0:13:06]} cxd3 {[%emt 0:01:01]} 15. cxd3 {[%emt 0:02:20]} a5 {[%emt 0:01:37]} 16. Bxf6 {[%emt 0:13:57]} Bxf6 {[%emt 0:00:09]} 17. d4 {[%emt 0:01:01]} Rfc8 {[%emt 0:04:09]} 18. e5 {[%emt 0:06:16]} Bg7 {[%emt 0:01:09]} 19. Qe4 {[%emt 0:02:04]} e6 {[%emt 0:01:46]} 20. d5 {[%emt 0:01:57]} dxe5 {[%emt 0:03:45]} 21. dxe6 {[%emt 0:00:33]} Qxe6 {[%emt 0:00:05]} 22. fxe5 {[%emt 0:00:35]} Rxc1 {[%emt 0:01:19]} 23. Qxa8+ {[%emt 0:00:32]} Qc8 {[%emt 0:00:40]} 24. Qxc8+ {[%emt 0:00:30]} Rxc8 {[%emt 0:00:05]} 25. b3 {[%emt 0:00:21]} b4 {[%emt 0:03:20]} 26. h3 {[%emt 0:00:38]} Rc5 {[%emt 0:00:19]} 27. Rd1 {[%emt 0:00:31]} Bxe5 {[%emt 0:00:19]} 28. Nxe5 {[%emt 0:01:01]} Rxe5 {[%emt 0:00:05]} 29. Kf2 {[%emt 0:00:00]} h5 {[%emt 0:00:24]} 30. Kf3 {[%emt 0:00:05]} Kg7 {[%emt 0:00:38]} 31. Rd6 {[%emt 0:00:16]} Rf5+ {[%emt 0:00:45]} 32. Ke3 {[%emt 0:00:31]} Rg5 {[%emt 0:00:05]} 33. Kf3 {[%emt 0:00:37]} Rc5 {[%emt 0:00:59]} 34. Ra6 {[%emt 0:00:31]} g5 {[%emt 0:00:33]} 35. Ke4 {[%emt 0:00:54]} f6 {[%emt 0:00:18]} 0-1

[Event "XIII Mediterranean Championship 2023"]
[Site "Castell-Platja d Aro"]
[Date "2023.11.04"]
[Round "1.13"]
[White "Lacasa Diaz, Jose Antonio"]
[Black "Makka, Ioulia"]
[Result "1-0"]
[ECO "C54"]
[WhiteElo "2353"]
[BlackElo "1900"]
[Annotator "ChessBase"]
[PlyCount "47"]
[EventDate "2023.10.26"]
[EventType "swiss"]
[EventCountry "ESP"]
[SourceTitle "playchess.com"]
[Source "ChessBase"]
[SourceQuality "1"]
[TimeControl "5400+30"]

1. e4 {[%emt 0:00:04]} e5 {[%emt 0:00:58]} 2. Nf3 {[%emt 0:00:24]} Nc6 {[%emt 0:00:18]} 3. Bc4 {[%emt 0:00:55]} Bc5 {[%emt 0:00:38]} 4. c3 {[%emt 0:00:26]} Nf6 {[%emt 0:01:02]} 5. d3 {[%emt 0:00:15]} d6 {[%emt 0:00:58]} 6. O-O {[%emt 0:00:28]} h6 {[%emt 0:02:01]} 7. Re1 {[%emt 0:00:37]} O-O {[%emt 0:01:04]} 8. h3 {[%emt 0:00:28]} a6 {[%emt 0:02:51]} 9. a4 {[%emt 0:02:48]} Re8 {[%emt 0:02:43]} 10. Nbd2 {[%emt 0:07:44]} Ba7 {[%emt 0:01:31]} 11. Nf1 {[%emt 0:06:26]} Be6 {[%emt 0:12:55]} 12. Bxe6 {[%emt 0:04:48]} Rxe6 {[%emt 0:01:33]} 13. Ng3 {[%emt 0:00:42]} d5 {[%emt 0:04:38]} 14. Qe2 {[%emt 0:00:43]} dxe4 {[%emt 0:05:03]} 15. dxe4 {[%emt 0:00:08]} Na5 {[%emt 0:03:50]} 16. Nf5 {[%emt 0:06:50]} Nb3 {[%emt 0:04:54]} 17. Bxh6 {[%emt 0:01:50]} gxh6 {[%emt 0:09:51]} 18. Nxh6+ {[%emt 0:02:02]} Kf8 {[%emt 0:03:04]} 19. Rad1 {[%emt 0:02:50]} Nd7 {[%emt 0:04:30]} 20. Nf5 {[%emt 0:06:20]} Qe8 {[%emt 0:04:41]} 21. Ng5 {[%emt 0:05:40]} Rg6 {[%emt 0:08:14]} 22. Qh5 {[%emt 0:02:48]} Qc8 {[%emt 0:23:16]} 23. Qh8+ {[%emt 0:00:45]} Rg8 {[%emt 0:00:04]} 24. Nh7+ {[%emt 0:00:12]} 1-0

[Event "XIII Mediterranean Championship 2023"]
[Site "Castell-Platja d Aro"]
[Date "2023.11.04"]
[Round "1.14"]
[White "De Lomas Busquets, Alba"]
[Black "Masague Artero, Guerau"]
[Result "1/2-1/2"]
[ECO "B08"]
[WhiteElo "1873"]
[BlackElo "2305"]
[Annotator "ChessBase"]
[PlyCount "76"]
[EventDate "2023.10.26"]
[EventType "swiss"]
[EventCountry "ESP"]
[SourceTitle "playchess.com"]
[Source "ChessBase"]
[SourceQuality "1"]
[TimeControl "5400+30"]

1. d4 {[%emt 0:00:06]} Nf6 {[%emt 0:01:29]} 2. Nf3 {[%emt 0:00:17]} g6 {[%emt 0:04:50]} 3. Nc3 {[%emt 0:00:36]} Bg7 {[%emt 0:00:14]} 4. e4 {[%emt 0:00:14]} d6 {[%emt 0:00:07]} 5. Be3 {[%emt 0:00:58]} Bg4 {[%emt 0:00:35]} 6. Qd2 {[%emt 0:01:52]} a6 {[%emt 0:04:21]} 7. h3 {[%emt 0:06:46]} Bxf3 {[%emt 0:00:28]} 8. gxf3 {[%emt 0:00:06]} Nc6 {[%emt 0:07:39]} 9. f4 {[%emt 0:11:22]} e6 {[%emt 0:11:32]} 10. Bd3 {[%emt 0:12:44]} d5 {[%emt 0:01:47]} 11. f3 {[%emt 0:02:52]} Nh5 {[%emt 0:05:03]} 12. Ne2 {[%emt 0:04:29]} f5 {[%emt 0:01:28]} 13. O-O-O {[%emt 0:10:01]} O-O {[%emt 0:01:27]} 14. e5 {[%emt 0:05:54]} b5 {[%emt 0:03:06]} 15. Rdg1 {[%emt 0:02:05]} Qh4 {[%emt 0:03:06]} 16. Qc3 {[%emt 0:03:53]} Nd8 {[%emt 0:02:22]} 17. Qxc7 {[%emt 0:02:14]} Bh6 {[%emt 0:01:29]} 18. Kb1 {[%emt 0:05:12]} Rf7 {[%emt 0:16:19]} 19. Qa5 {[%emt 0:05:12]} Nxf4 {[%emt 0:06:57]} 20. Bxf4 {[%emt 0:04:23]} Bxf4 {[%emt 0:00:07]} 21. Bxb5 {[%emt 0:01:10]} Be3 {[%emt 0:04:57]} 22. Rd1 {[%emt 0:02:18]} Rb7 {[%emt 0:03:11]} 23. Ba4 {[%emt 0:05:07]} Qf2 {[%emt 0:06:49]} 24. Qe1 {[%emt 0:03:11]} Qxe1 {[%emt 0:04:44]} 25. Rhxe1 {[%emt 0:00:06]} f4 {[%emt 0:00:09]} 26. Rd3 {[%emt 0:04:14]} Rb4 {[%emt 0:00:30]} 27. Bb3 {[%emt 0:00:28]} a5 {[%emt 0:00:59]} 28. a3 {[%emt 0:01:06]} Rb7 {[%emt 0:00:36]} 29. Nc3 {[%emt 0:00:17]} Kf8 {[%emt 0:02:39]} 30. Nd1 {[%emt 0:00:38]} a4 {[%emt 0:00:59]} 31. Nxe3 {[%emt 0:00:49]} axb3 {[%emt 0:00:54]} 32. Ng2 {[%emt 0:01:18]} bxc2+ {[%emt 0:00:07]} 33. Kxc2 {[%emt 0:00:04]} g5 {[%emt 0:01:09]} 34. Rc3 {[%emt 0:00:16]} Ra4 {[%emt 0:00:58]} 35. b4 {[%emt 0:00:30]} Rb6 {[%emt 0:04:53]} 36. Kb3 {[%emt 0:05:42]} Rba6 {[%emt 0:00:30]} 37. Kb2 Nc6 {[%emt 0:00:30]} 38. b5 {[%emt 0:01:00]} Rb6 {[%emt 0:00:30]} 1/2-1/2

[Event "XIII Mediterranean Championship 2023"]
[Site "Castell-Platja d Aro"]
[Date "2023.11.04"]
[Round "1.15"]
[White "Lazaro Pujol, Abel"]
[Black "Vinolas Anglada, Laura"]
[Result "1-0"]
[ECO "C54"]
[WhiteElo "2289"]
[BlackElo "1884"]
[Annotator "ChessBase"]
[PlyCount "83"]
[EventDate "2023.10.26"]
[EventType "swiss"]
[EventCountry "ESP"]
[SourceTitle "playchess.com"]
[Source "ChessBase"]
[SourceQuality "1"]
[TimeControl "5400+30"]

1. e4 {[%emt 0:00:07]} e5 {[%emt 0:00:00]} 2. Nf3 {[%emt 0:00:20]} Nc6 {[%emt 0:00:08]} 3. Bc4 {[%emt 0:00:39]} Bc5 {[%emt 0:00:33]} 4. O-O {[%emt 0:00:43]} Nf6 {[%emt 0:00:19]} 5. d3 {[%emt 0:00:23]} d6 {[%emt 0:00:28]} 6. c3 {[%emt 0:00:25]} a6 {[%emt 0:00:47]} 7. a4 {[%emt 0:00:34]} Ba7 {[%emt 0:00:42]} 8. Re1 {[%emt 0:01:15]} h6 {[%emt 0:01:34]} 9. Nbd2 {[%emt 0:02:35]} O-O {[%emt 0:00:34]} 10. h3 {[%emt 0:01:08]} Be6 {[%emt 0:02:32]} 11. Bxe6 {[%emt 0:03:15]} fxe6 {[%emt 0:00:13]} 12. b4 {[%emt 0:00:05]} Nh5 {[%emt 0:01:19]} 13. Nf1 {[%emt 0:02:02]} Qf6 {[%emt 0:02:48]} 14. Be3 {[%emt 0:04:08]} Bxe3 {[%emt 0:17:51]} 15. Rxe3 {[%emt 0:05:05]} Nf4 {[%emt 0:03:11]} 16. Kh2 {[%emt 0:05:22]} d5 {[%emt 0:18:05]} 17. Rb1 {[%emt 0:19:31]} Rad8 {[%emt 0:10:53]} 18. b5 {[%emt 0:15:58]} axb5 {[%emt 0:02:11]} 19. axb5 {[%emt 0:01:04]} Na5 {[%emt 0:05:39]} 20. Ng3 {[%emt 0:02:10]} Rfe8 {[%emt 0:03:55]} 21. Qc2 {[%emt 0:03:46]} Rd7 {[%emt 0:02:40]} 22. Rbe1 {[%emt 0:01:25]} Rde7 {[%emt 0:03:56]} 23. Ne2 {[%emt 0:05:39]} Ng6 {[%emt 0:02:48]} 24. exd5 {[%emt 0:03:22]} exd5 {[%emt 0:00:24]} 25. Qa2 {[%emt 0:00:53]} b6 {[%emt 0:01:52]} 26. Qxd5+ {[%emt 0:00:45]} Kh8 {[%emt 0:00:36]} 27. Kg1 {[%emt 0:04:05]} Re6 {[%emt 0:00:48]} 28. Ng3 {[%emt 0:04:59]} Nf4 {[%emt 0:01:34]} 29. Qa2 {[%emt 0:01:07]} Nb7 {[%emt 0:08:42]} 30. Kh2 {[%emt 0:05:40]} Nc5 {[%emt 0:01:36]} 31. Qc2 {[%emt 0:00:17]} Nfxd3 {[%emt 0:05:04]} 32. Rxd3 {[%emt 0:03:12]} e4 {[%emt 0:00:23]} 33. Rde3 {[%emt 0:01:05]} exf3 {[%emt 0:00:14]} 34. Rxf3 {[%emt 0:00:13]} Qd8 {[%emt 0:01:12]} 35. Rxe6 {[%emt 0:00:31]} Nxe6 {[%emt 0:00:15]} 36. Qf5 {[%emt 0:00:11]} Ng5 {[%emt 0:01:24]} 37. Rd3 {[%emt 0:00:12]} Qe7 {[%emt 0:00:51]} 38. Rd7 {[%emt 0:00:24]} Qe5 {[%emt 0:00:35]} 39. Qxe5 {[%emt 0:00:06]} Rxe5 {[%emt 0:00:11]} 40. f4 {[%emt 0:00:07]} Rxb5 {[%emt 0:00:54]} 41. fxg5 {[%emt 0:00:07]} Rxg5 {[%emt 0:00:26]} 42. Rxc7 {[%emt 0:00:07]} 1-0

[Event "XIII Mediterranean Championship 2023"]
[Site "Castell-Platja d Aro"]
[Date "2023.11.04"]
[Round "1.16"]
[White "Canigueral Salvado, Jaume"]
[Black "Jimenez Ruano, Adrian"]
[Result "0-1"]
[ECO "B51"]
[WhiteElo "1853"]
[BlackElo "2281"]
[Annotator "ChessBase"]
[PlyCount "41"]
[EventDate "2023.10.26"]
[EventType "swiss"]
[EventCountry "ESP"]
[SourceTitle "playchess.com"]
[Source "ChessBase"]
[SourceQuality "1"]
[TimeControl "5400+30"]

1. e4 {[%emt 0:00:08]} c5 {[%emt 0:00:11]} 2. Nf3 {[%emt 0:00:18]} d6 {[%emt 0:00:16]} 3. d4 {[%emt 0:00:44]} cxd4 {[%emt 0:00:06]} 4. Nxd4 {[%emt 0:00:09]} Nf6 {[%emt 0:00:05]} 5. Bb5+ {[%emt 0:02:34]} Nbd7 {[%emt 0:02:29]} 6. Nc3 {[%emt 0:00:56]} a6 {[%emt 0:00:45]} 7. Bxd7+ {[%emt 0:02:21]} Bxd7 {[%emt 0:00:03]} 8. O-O {[%emt 0:00:53]} g6 {[%emt 0:18:51]} 9. h3 {[%emt 0:05:10]} Bg7 {[%emt 0:03:04]} 10. Be3 {[%emt 0:00:52]} O-O {[%emt 0:02:22]} 11. Qd2 {[%emt 0:00:46]} b5 {[%emt 0:04:25]} 12. a3 {[%emt 0:01:51]} e5 {[%emt 0:07:31]} 13. Nde2 {[%emt 0:02:24]} Bc6 {[%emt 0:05:02]} 14. Bg5 {[%emt 0:03:46]} Qc7 {[%emt 0:05:08]} 15. Bxf6 {[%emt 0:03:00]} Bxf6 {[%emt 0:00:02]} 16. Rad1 {[%emt 0:00:19]} Rfd8 {[%emt 0:02:03]} 17. Nd5 {[%emt 0:03:06]} Bxd5 {[%emt 0:00:10]} 18. exd5 {[%emt 0:00:02]} Rac8 {[%emt 0:00:55]} 19. c3 {[%emt 0:00:47]} Bg7 {[%emt 0:07:25]} 20. Ng3 {[%emt 0:01:56]} f5 {[%emt 0:02:38]} 21. Rfe1 {[%emt 0:05:27]} 0-1

[Event "XIII Mediterranean Championship 2023"]
[Site "Castell-Platja d Aro"]
[Date "2023.11.04"]
[Round "1.17"]
[White "Martinez Pla, Xavier"]
[Black "Vinals Rioja, Jaume"]
[Result "1-0"]
[ECO "B12"]
[WhiteElo "2263"]
[BlackElo "1838"]
[Annotator "ChessBase"]
[PlyCount "68"]
[EventDate "2023.10.26"]
[EventType "swiss"]
[EventCountry "ESP"]
[SourceTitle "playchess.com"]
[Source "ChessBase"]
[SourceQuality "1"]
[TimeControl "5400+30"]

1. e4 {[%emt 0:00:03]} c6 {[%emt 0:00:10]} 2. d4 {[%emt 0:00:15]} d5 {[%emt 0:00:11]} 3. e5 {[%emt 0:00:43]} Bf5 {[%emt 0:00:18]} 4. Nd2 {[%emt 0:00:17]} e6 {[%emt 0:00:57]} 5. Nb3 {[%emt 0:00:08]} Nd7 {[%emt 0:01:28]} 6. Nf3 {[%emt 0:01:57]} a6 {[%emt 0:01:23]} 7. Be2 {[%emt 0:08:13]} c5 {[%emt 0:03:00]} 8. dxc5 {[%emt 0:01:06]} Nxc5 {[%emt 0:00:13]} 9. Nfd4 {[%emt 0:03:08]} Nxb3 {[%emt 0:04:09]} 10. axb3 {[%emt 0:02:35]} Bg6 {[%emt 0:02:36]} 11. O-O {[%emt 0:04:55]} Ne7 {[%emt 0:01:25]} 12. Be3 {[%emt 0:11:30]} Nf5 {[%emt 0:02:55]} 13. Nxf5 {[%emt 0:04:09]} Bxf5 {[%emt 0:00:10]} 14. g4 {[%emt 0:00:32]} Bg6 {[%emt 0:00:35]} 15. f4 {[%emt 0:05:28]} Be4 {[%emt 0:01:47]} 16. f5 {[%emt 0:08:51]} Rc8 {[%emt 0:02:41]} 17. c3 {[%emt 0:12:17]} Bc5 {[%emt 0:01:42]} 18. Bxc5 {[%emt 0:00:49]} Rxc5 {[%emt 0:00:02]} 19. fxe6 {[%emt 0:07:41]} fxe6 {[%emt 0:00:15]} 20. Qd4 {[%emt 0:02:35]} Rc6 {[%emt 0:02:09]} 21. b4 {[%emt 0:08:53]} Qb6 {[%emt 0:08:04]} 22. Qxb6 {[%emt 0:01:18]} Rxb6 {[%emt 0:00:02]} 23. Kf2 {[%emt 0:07:09]} Rf8+ {[%emt 0:01:10]} 24. Ke3 {[%emt 0:00:12]} Rxf1 {[%emt 0:00:36]} 25. Bxf1 {[%emt 0:06:36]} Kf7 {[%emt 0:03:18]} 26. Be2 {[%emt 0:00:40]} Rc6 {[%emt 0:02:06]} 27. b5 {[%emt 0:01:12]} axb5 {[%emt 0:00:19]} 28. Bxb5 {[%emt 0:00:29]} Rb6 {[%emt 0:00:11]} 29. Ra5 {[%emt 0:00:06]} Ke7 {[%emt 0:03:21]} 30. Kd4 {[%emt 0:00:24]} Kd8 {[%emt 0:00:01]} 31. c4 {[%emt 0:01:12]} Kc7 {[%emt 0:01:33]} 32. c5 {[%emt 0:00:09]} Bf3 {[%emt 0:00:56]} 33. cxb6+ {[%emt 0:00:08]} Kxb6 {[%emt 0:00:01]} 34. Ra3 {[%emt 0:00:25]} h5 {[%emt 0:57:46]} 1-0

[Event "XIII Mediterranean Championship 2023"]
[Site "Castell-Platja d Aro"]
[Date "2023.11.04"]
[Round "1.18"]
[White "Andreu Lopez, Santiago"]
[Black "Ventura Bolet, Alexandre"]
[Result "0-1"]
[ECO "A16"]
[WhiteElo "1834"]
[BlackElo "2238"]
[Annotator "ChessBase"]
[PlyCount "70"]
[EventDate "2023.10.26"]
[EventType "swiss"]
[EventCountry "ESP"]
[SourceTitle "playchess.com"]
[Source "ChessBase"]
[SourceQuality "1"]
[TimeControl "5400+30"]

1. Nf3 {[%emt 0:00:03]} g6 {[%emt 0:00:15]} 2. g3 {[%emt 0:00:07]} Bg7 {[%emt 0:00:10]} 3. Bg2 {[%emt 0:00:06]} e5 {[%emt 0:00:29]} 4. d3 {[%emt 0:00:11]} Ne7 {[%emt 0:01:57]} 5. c4 {[%emt 0:01:03]} d5 {[%emt 0:01:49]} 6. cxd5 {[%emt 0:00:49]} Nxd5 {[%emt 0:00:06]} 7. O-O {[%emt 0:00:17]} O-O {[%emt 0:00:30]} 8. Qb3 {[%emt 0:03:34]} c6 {[%emt 0:01:19]} 9. Nc3 {[%emt 0:00:15]} Nb6 {[%emt 0:14:02]} 10. Bg5 {[%emt 0:01:41]} Qc7 {[%emt 0:04:59]} 11. Rac1 {[%emt 0:03:26]} h6 {[%emt 0:04:12]} 12. Be3 {[%emt 0:01:16]} Be6 {[%emt 0:01:33]} 13. Qb4 {[%emt 0:04:34]} Na6 {[%emt 0:06:55]} 14. Qh4 {[%emt 0:00:40]} Qd8 {[%emt 0:00:30]} 15. Qxd8 {[%emt 0:07:26]} Rfxd8 {[%emt 0:00:05]} 16. a3 {[%emt 0:00:14]} f5 {[%emt 0:14:00]} 17. b4 {[%emt 0:00:55]} Nc7 {[%emt 0:04:04]} 18. Nh4 {[%emt 0:08:12]} g5 {[%emt 0:07:37]} 19. Nf3 {[%emt 0:01:00]} Rd7 {[%emt 0:07:25]} 20. Rfd1 {[%emt 0:13:20]} Rad8 {[%emt 0:01:36]} 21. Bxb6 {[%emt 0:01:54]} axb6 {[%emt 0:00:08]} 22. Na4 {[%emt 0:00:27]} Na8 {[%emt 0:02:27]} 23. Rd2 {[%emt 0:07:18]} Bb3 {[%emt 0:06:23]} 24. Nc3 {[%emt 0:00:28]} Nc7 {[%emt 0:02:59]} 25. Ne1 {[%emt 0:01:14]} Ra8 {[%emt 0:02:00]} 26. a4 {[%emt 0:07:40]} Bxa4 {[%emt 0:01:40]} 27. Nxa4 {[%emt 0:00:07]} Rxa4 {[%emt 0:00:15]} 28. Rb1 {[%emt 0:01:05]} Nb5 {[%emt 0:02:01]} 29. Nc2 {[%emt 0:02:28]} Ra2 {[%emt 0:03:50]} 30. Ra1 {[%emt 0:01:30]} Rb2 {[%emt 0:00:49]} 31. e3 {[%emt 0:00:20]} Bf8 {[%emt 0:01:17]} 32. Ra4 {[%emt 0:02:57]} Nc3 {[%emt 0:00:57]} 33. Ra7 {[%emt 0:00:17]} e4 {[%emt 0:00:59]} 34. Bf1 {[%emt 0:01:30]} Bxb4 {[%emt 0:00:39]} 35. Ra8+ {[%emt 0:02:04]} Kg7 {[%emt 0:00:07]} 0-1